bitfinex/quotes_SOLUSD_20250101
["timestamp","ask_amount","ask_price","bid_price","bid_amount"]
[1735721649855,7.11716417,190.1,190.0,8.03043]
[1735721650026,7.11716417,190.1,190.01,1.86853]
[1735721650650,7.11716417,190.1,190.0,6.1619]
[1735721654968,7.11716417,190.1,190.01,1.86573098]
[1735721655643,7.11716417,190.1,190.0,6.1619]
[1735721655857,7.11716417,190.1,190.0,6.95113757]
[1735721656026,7.11716417,190.1,190.0,65.95113757]
[1735721656627,7.11716417,190.1,190.01,1.86502457]
[1735721657138,7.11716417,190.1,190.0,65.95113757]
[1735721658646,7.11716417,190.1,190.01,1.86424824]
[1735721659258,7.11716417,190.1,190.0,65.95113757]
[1735721659949,7.11716417,190.1,190.0,6.95113757]
[1735721660152,7.11716417,190.1,190.01,1.6015]
[1735721660529,7.11716417,190.1,190.01,3.46544084]
[1735721660734,7.11716417,190.1,190.02,0.78908502]
[1735721661035,7.11716417,190.1,190.03,1.86394084]
[1735721661735,7.11716417,190.1,190.01,1.6015]
[1735721665843,20.0,190.06,190.01,1.6015]
[1735721666273,7.11716417,190.1,190.01,1.6015]
[1735721666554,13.1486,190.14,190.01,1.6015]
[1735721666932,20.0,190.11,190.01,1.6015]
[1735721667334,20.0,190.11,190.02,59.78918376]
[1735721667640,20.0,190.11,190.01,60.6015]
[1735721670257,20.0,190.11,190.02,0.78916232]
[1735721673435,20.0,190.11,190.01,60.6015]
[1735721676443,20.0,190.1,190.01,60.6015]
[1735721676986,20.0,190.08,190.01,1.6015]
[1735721677849,23.776884,190.07,190.01,1.6015]
[1735721678267,36.930484,190.07,190.01,1.6015]
[1735721681770,20.0,190.04,190.01,1.6015]
[1735721685157,33.1553,190.04,189.97,1.86835291]
[1735721685578,33.1553,190.04,189.96,7.8225]
[1735721696578,33.1553,190.04,189.96,1.5111]
[1735721696579,23.776884,190.03,189.96,1.5111]
[1735721696882,20.0,189.99,189.96,1.5111]
[1735721697058,20.0,189.99,189.92,6.1449]
[1735721698072,20.0,189.96,189.92,6.1449]
[1735721699858,20.0,189.96,189.91,1.5502]
[1735721700072,23.776884,189.96,189.91,1.5502]
[1735721700377,23.776884,189.96,189.87,1.5712]
[1735721700378,20.0,189.93,189.87,1.5712]
[1735721700552,20.0,189.92,189.87,1.5712]
[1735721706098,13.1631,189.93,189.83,7.7696]
[1735721706099,13.1641,189.91,189.83,7.7696]
[1735721706386,20.0,189.87,189.83,1.5712]
[1735721707097,6.48685752,189.94,189.83,1.5712]
[1735721707098,6.1711,189.97,189.83,1.5712]
[1735721707262,20.0,189.93,189.83,1.5712]
[1735721707466,23.776884,189.92,189.83,1.5712]
[1735721707959,23.776884,189.9,189.83,1.5712]
[1735721708388,20.0,189.87,189.83,1.5712]
[1735721710392,20.0,189.85,189.83,1.5712]
[1735721711787,20.0,189.85,189.78,7.7696]
[1735721712612,20.0,189.83,189.78,7.7696]
[1735721712886,50.38509817,189.86,189.72,1.5712]
[1735721713974,20.0,189.82,189.72,1.5712]
[1735721714172,20.0,189.81,189.72,1.5712]
[1735721722600,20.0,189.81,189.72,2.36167905]
[1735721724200,6.60821417,189.86,189.74,9.61680386]
[1735721724498,20.0,189.86,189.76,1.5605]
[1735721726601,23.776884,189.88,189.76,1.5605]
[1735721726897,20.0,189.85,189.76,1.5605]
[1735721727196,6.60821417,189.92,189.78,6.2148]
[1735721727495,6.60821417,189.92,189.8,1.5605]
[1735721727692,20.0,189.88,189.8,1.5605]
[1735721737896,20.0,189.86,189.8,1.5605]
[1735721738205,20.0,189.84,189.8,1.5605]
[1735721738606,13.1682,189.85,189.8,1.5605]
[1735721738903,20.0,189.82,189.79,1.85796763]
[1735721739618,20.0,189.82,189.73,6.6019]
[1735721739619,20.0,189.82,189.74,1.85796763]
[1735721740306,20.0,189.82,189.75,1.85796763]
[1735721740614,20.0,189.8,189.75,1.85796763]
[1735721741108,20.0,189.8,189.76,1.85796763]
[1735721741500,20.0,189.8,189.73,6.6019]
[1735721742309,13.1703,189.83,189.74,1.86264981]
[1735721742902,13.1703,189.83,189.75,1.86264981]
[1735721743488,13.1703,189.83,189.76,1.86264981]
[1735721744121,13.1703,189.83,189.77,1.86264981]
[1735721745090,13.1703,189.83,189.78,1.86264981]
[1735721745685,13.1703,189.83,189.73,6.6019]
[1735721745890,20.0,189.8,189.73,6.6019]
[1735721746212,20.0,189.8,189.74,1.86595833]
[1735721746725,20.0,189.8,189.73,6.6019]
[1735721748028,20.0,189.8,189.74,1.86603612]
[1735721749024,20.0,189.8,189.73,6.6019]
[1735721750625,20.0,189.8,189.74,1.86662342]
[1735721751226,20.0,189.8,189.73,6.6019]
[1735721752646,20.0,189.8,189.74,1.86667382]
[1735721753514,20.0,189.8,189.75,1.86667382]
[1735721753996,13.1671,189.87,189.76,1.5312]
[1735721754196,13.1671,189.87,189.76,4.18812676]
[1735721754904,13.1671,189.87,189.77,1.86667382]
[1735721755623,6.48685752,189.9,189.79,6.2994]
[1735721755924,13.1644,189.91,189.8,1.5312]
[1735721756122,13.1644,189.91,189.8,4.1879399]
[1735721756327,20.0,189.88,189.8,4.1879399]
[1735721756624,13.1644,189.91,189.8,4.1879399]
[1735721756916,20.0,189.88,189.81,1.86667382]
[1735721757509,20.0,189.88,189.82,1.86667382]
[1735721758204,20.0,189.88,189.8,1.5312]
[1735721758809,20.0,189.88,189.81,1.86825968]
[1735721759405,20.0,189.88,189.82,1.86825968]
[1735721760221,33.1661,189.89,189.8,1.5312]
[1735721760528,23.776884,189.88,189.8,1.5312]
[1735721761415,13.1669,189.87,189.8,1.5312]
[1735721764428,33.1689,189.85,189.8,1.5312]
[1735721764611,33.1689,189.85,189.75,1.609]
[1735721764810,33.1689,189.85,189.75,3.47807093]
[1735721765210,23.776884,189.84,189.75,3.47807093]
[1735721765623,23.776884,189.84,189.75,1.609]
[1735721766829,20.0,189.81,189.75,1.609]
[1735721770335,33.1716,189.81,189.75,1.609]
[1735721772409,20.0,189.81,189.75,1.609]
[1735721772614,13.1724,189.79,189.75,1.609]
[1735721772816,13.1724,189.79,189.7,1.609]
[1735721773026,20.0,189.76,189.7,1.609]
[1735721773234,20.0,189.76,189.71,1.86881471]
[1735721774049,20.0,189.76,189.72,1.86881471]
[1735721774842,20.0,189.77,189.7,1.609]
[1735721776045,33.1742,189.77,189.7,1.609]
[1735721782056,13.1718,189.8,189.7,1.609]
[1735721782353,3.74396674,189.81,189.7,1.609]
[1735721782853,20.0,189.79,189.71,1.8666615]
[1735721783756,20.0,189.79,189.72,1.8666615]
[1735721784256,20.0,189.79,189.7,1.609]
[1735721784952,20.0,189.79,189.71,1.86677493]
[1735721785728,20.0,189.79,189.72,1.86677493]
[1735721786371,20.0,189.79,189.7,1.609]
[1735721787232,20.0,189.79,189.71,1.86684598]
[1735721787729,20.0,189.79,189.72,1.86684598]
[1735721788328,20.0,189.79,189.7,1.609]
[1735721788952,20.0,189.79,189.71,1.8669613]
[1735721789733,20.0,189.79,189.72,1.8669613]
[1735721790538,20.0,189.79,189.7,1.609]
[1735721791047,20.0,189.79,189.71,1.86708638]
[1735721791746,20.0,189.79,189.72,1.86708638]
[1735721792355,20.0,189.79,189.7,1.609]
[1735721793353,20.0,189.79,189.71,1.86705784]
[1735721794237,20.0,189.79,189.72,1.86705784]
[1735721795170,20.0,189.79,189.7,1.609]
[1735721796051,20.0,189.79,189.71,1.86702736]
[1735721796741,20.0,189.79,189.72,1.86702736]
[1735721797361,13.1698,189.83,189.73,1.5487]
[1735721797542,20.0,189.8,189.73,1.5487]
[1735721799266,13.1698,189.83,189.73,1.5487]
[1735721799574,13.1675,189.86,189.74,6.1197]
[1735721800363,20.0,189.82,189.75,1.86702811]
[1735721800962,20.0,189.82,189.76,1.86702811]
[1735721801760,20.0,189.82,189.74,6.1197]
[1735721802567,20.0,189.82,189.75,1.86775767]
[1735721803046,20.0,189.82,189.76,1.86775767]
[1735721803369,13.1675,189.86,189.77,1.5487]
[1735721803746,20.0,189.83,189.77,1.5487]
[1735721806877,13.1675,189.86,189.77,1.5487]
[1735721807047,13.1675,189.86,189.78,1.86975119]
[1735721807572,13.1675,189.86,189.77,1.5487]
[1735721808067,6.60821417,189.87,189.77,1.5487]
[1735721808269,19.65255752,189.89,189.77,2.33890416]
[1735721808472,13.1657,189.89,189.77,2.33890416]
[1735721809073,13.1657,189.89,189.78,1.86970898]
[1735721809751,13.1657,189.89,189.79,1.86970898]
[1735721810256,13.1657,189.89,189.8,1.86970898]
[1735721810657,13.1657,189.89,189.77,1.5487]
[1735721811552,13.1657,189.89,189.78,1.8687276]
[1735721812054,20.0,189.86,189.78,1.8687276]
[1735721812265,20.0,189.86,189.79,1.8687276]
[1735721813072,20.0,189.86,189.77,1.5487]
[1735721813679,20.0,189.86,189.78,1.86606237]
[1735721814087,43.776884,189.88,189.78,1.86606237]
[1735721814263,43.776884,189.88,189.77,1.5487]
[1735721815481,13.1669,189.87,189.77,1.5487]
[1735721817190,13.1669,189.87,189.78,1.86529988]
[1735721817788,13.1669,189.87,189.77,1.5487]
[1735721819296,13.1669,189.87,189.78,1.86499862]
[1735721819983,13.1669,189.87,189.77,1.5487]
[1735721823072,13.1687,189.85,189.77,1.5487]
[1735721823260,23.776884,189.84,189.77,1.5487]
[1735721825578,23.776884,189.84,189.78,1.86640203]
[1735721825984,20.0,189.83,189.78,1.86640203]
[1735721826366,20.0,189.83,189.77,1.5487]
[1735721827375,13.1703,189.82,189.78,1.86724732]
[1735721827883,13.1703,189.82,189.77,1.5487]
[1735721833997,10.188002,189.82,189.77,1.5487]
[1735721834689,20.0,189.83,189.77,1.5487]
[1735721834893,6.60821417,189.87,189.77,1.5487]
[1735721835095,6.60821417,189.87,189.77,2.33889227]
[1735721835284,6.60821417,189.87,189.78,1.86883062]
[1735721835983,6.60821417,189.87,189.77,2.33889227]
[1735721837466,13.164,189.92,189.78,8.38295905]
[1735721837671,13.164,189.92,189.79,2.38666033]
[1735721838097,20.0,189.89,189.79,2.38666033]
[1735721838599,13.164,189.92,189.79,2.38666033]
[1735721838977,20.0,189.89,189.8,1.86994016]
[1735721839797,20.0,189.89,189.81,1.86994016]
[1735721839988,20.0,189.89,189.82,1.5966]
[1735721842083,20.0,189.89,189.83,1.87016849]
[1735721842786,20.0,189.89,189.82,1.5966]
[1735721844106,20.0,189.89,189.83,1.87038814]
[1735721844902,20.0,189.89,189.82,1.5966]
[1735721846093,20.0,189.89,189.83,1.87040598]
[1735721846606,20.0,189.89,189.82,1.5966]
[1735721848708,13.1662,189.88,189.82,1.5966]
[1735721852709,20.0,189.85,189.82,1.5966]
[1735721852888,20.0,189.85,189.78,6.5136]
[1735721853688,13.1689,189.85,189.78,6.5136]
[1735721854786,20.0,189.85,189.78,6.5136]
[1735721855207,20.0,189.85,189.71,59.79031546]
[1735721855413,20.0,189.85,189.72,6.3553]
[1735721855989,20.0,189.85,189.73,1.6228]
[1735721856297,20.0,189.85,189.73,3.49343778]
[1735721856810,20.0,189.85,189.74,1.87063778]
[1735721857013,13.1689,189.84,189.74,1.87063778]
[1735721857514,13.1689,189.84,189.75,1.87063778]
[1735721858395,13.1689,189.84,189.76,1.87063778]
[1735721859117,20.0,189.81,189.76,1.87063778]
[1735721859326,20.0,189.81,189.77,1.87063778]
[1735721859923,20.0,189.81,189.78,1.87063778]
[1735721860921,20.0,189.81,189.73,1.6228]
[1735721861722,20.0,189.81,189.74,1.87030256]
[1735721862402,20.0,189.81,189.75,1.87030256]
[1735721863138,20.0,189.81,189.73,1.6228]
[1735721863301,13.1711,189.81,189.73,1.6228]
[1735721863711,20.0,189.8,189.74,1.86987305]
[1735721864603,20.0,189.8,189.73,1.6228]
[1735721865228,13.1711,189.81,189.73,1.6228]
[1735721865823,13.1711,189.81,189.74,1.86926564]
[1735721866522,13.1711,189.81,189.73,1.6228]
[1735721867827,13.1711,189.81,189.74,1.86865859]
[1735721868522,13.1711,189.81,189.73,1.6228]
[1735721869923,13.1711,189.81,189.74,1.86814526]
[1735721870636,13.1711,189.81,189.73,1.6228]
[1735721872127,13.1711,189.81,189.74,1.86795282]
[1735721872827,13.1711,189.81,189.73,1.6228]
[1735721874331,13.1711,189.81,189.74,1.86761745]
[1735721875027,13.1711,189.81,189.73,1.6228]
[1735721886772,13.1724,189.79,189.69,1.5779]
[1735721887376,13.1724,189.79,189.7,1.86940323]
[1735721888278,13.1724,189.79,189.71,1.86940323]
[1735721888782,13.1724,189.79,189.69,1.5779]
[1735721889088,20.0,189.76,189.69,1.5779]
[1735721890392,33.1743,189.77,189.69,1.5779]
[1735721898483,13.1719,189.8,189.69,1.5779]
[1735721898787,1.5287,189.85,189.7,0.79051106]
[1735721898997,6.0488,189.86,189.72,6.5126]
[1735721899165,20.0,189.82,189.72,6.5126]
[1735721899367,13.1697,189.83,189.72,6.5126]
[1735721901301,13.1697,189.83,189.73,0.79038685]
[1735721901471,20.0,189.82,189.73,0.79038685]
[1735721901671,20.0,189.82,189.74,1.629]
[1735721902082,26.26257169,189.87,189.74,1.629]
[1735721902283,20.0,189.83,189.75,1.87100435]
[1735721902676,20.0,189.84,189.75,1.87100435]
[1735721902874,20.0,189.84,189.76,1.87100435]
[1735721903479,20.0,189.84,189.75,0.79025075]
[1735721903795,20.0,189.84,189.74,60.629]
[1735721904680,20.0,189.84,189.75,1.87109246]
[1735721905274,20.0,189.84,189.76,1.87109246]
[1735721905890,20.0,189.84,189.74,60.629]
[1735721905891,20.0,189.84,189.77,1.87109246]
[1735721906196,19.77571417,189.87,189.79,1.629]
[1735721913896,20.0,189.84,189.79,1.629]
[1735721934895,16.035653,189.84,189.79,1.629]
[1735721939917,36.946484,189.83,189.72,7.8317]
[1735721940424,36.946484,189.83,189.73,1.86960794]
[1735721940816,36.946484,189.83,189.74,1.86960794]
[1735721941430,20.0,189.8,189.74,1.86960794]
[1735721941726,20.0,189.8,189.72,7.8317]
[1735721942406,20.0,189.79,189.73,1.87078322]
[1735721943131,13.172,189.8,189.73,1.87078322]
[1735721943304,13.172,189.8,189.74,1.87078322]
[1735721944041,13.172,189.8,189.75,1.87078322]
[1735721944204,20.0,189.81,189.75,1.87078322]
[1735721944409,20.0,189.8,189.75,1.87078322]
[1735721944928,16.91376674,189.83,189.75,1.87078322]
[1735721945132,13.1698,189.83,189.75,1.87078322]
[1735721945304,13.1698,189.83,189.73,0.79041441]
[1735721945911,13.1698,189.83,189.74,1.87284859]
[1735721946729,13.1698,189.83,189.75,1.87284859]
[1735721947635,13.1698,189.83,189.76,1.87284859]
[1735721948332,13.1698,189.83,189.77,1.87284859]
[1735721949040,13.1698,189.83,189.73,0.79041441]
[1735721949929,13.1698,189.83,189.74,1.87343736]
[1735721950732,13.1698,189.83,189.73,0.79041441]
[1735721950733,13.1698,189.83,189.75,1.87341259]
[1735721951631,13.1698,189.83,189.76,1.87341259]
[1735721952122,13.1698,189.83,189.77,1.87341259]
[1735721952710,13.1698,189.83,189.73,0.79041441]
[1735721953412,13.1698,189.83,189.74,1.87339024]
[1735721953842,13.1698,189.83,189.75,1.87339024]
[1735721954611,13.1698,189.83,189.76,1.87339024]
[1735721954836,36.946684,189.83,189.76,1.87339024]
[1735721955341,36.946684,189.83,189.77,1.87339024]
[1735721956033,13.171,189.81,189.77,1.87339024]
[1735721956230,13.171,189.81,189.72,66.8317]
[1735721956614,13.171,189.81,189.72,7.8317]
[1735721957017,20.0,189.78,189.73,1.87291707]
[1735721957823,20.0,189.78,189.74,1.87291707]
[1735721958516,20.0,189.78,189.72,7.8317]
[1735721959342,20.0,189.78,189.73,1.87255889]
[1735721960641,20.0,189.78,189.72,7.8317]
[1735721961440,20.0,189.78,189.73,1.87211346]
[1735721962138,20.0,189.78,189.72,7.8317]
[1735721962842,13.1732,189.78,189.72,7.8317]
[1735721969242,20.0,189.8,189.67,0.79060913]
[1735721969243,20.0,189.73,189.67,1.6375]
[1735721969623,20.0,189.73,189.68,1.87046326]
[1735721969831,13.1749,189.76,189.68,1.87046326]
[1735721970442,13.1749,189.76,189.69,1.87046326]
[1735721970642,13.1749,189.76,189.7,1.87046326]
[1735721971426,13.1749,189.76,189.67,1.6375]
[1735721972250,13.1749,189.76,189.68,1.86967722]
[1735721973126,13.1749,189.76,189.69,1.86967722]
[1735721973830,13.1749,189.76,189.67,1.6375]
[1735721974032,6.60821417,189.79,189.68,0.79060945]
[1735721974834,13.1722,189.8,189.69,7.6447]
[1735721975239,20.0,189.79,189.7,1.87448359]
[1735721975438,20.0,189.79,189.7,2.66495673]
[1735721976151,20.0,189.79,189.71,1.87448359]
[1735721976853,20.0,189.79,189.69,7.6447]
[1735721977429,20.0,189.78,189.7,1.87444863]
[1735721977855,20.0,189.78,189.69,7.6447]
[1735721978852,33.1731,189.79,189.69,7.6447]
[1735721979454,33.1731,189.79,189.7,1.87454383]
[1735721980054,33.1731,189.79,189.69,7.6447]
[1735721981227,33.1731,189.79,189.7,1.87459355]
[1735721981959,33.1731,189.79,189.69,7.6447]
[1735721983451,33.1731,189.79,189.7,1.8749156]
[1735721983850,33.1731,189.79,189.71,1.8749156]
[1735721984458,33.1731,189.79,189.69,7.6447]
[1735721985350,33.1731,189.79,189.7,1.87532292]
[1735721985857,33.1731,189.79,189.71,1.87532292]
[1735721986557,23.776884,189.78,189.69,7.6447]
[1735721986856,13.1738,189.77,189.69,7.6447]
[1735721987039,13.1738,189.77,189.7,1.87526428]
[1735721987770,13.1738,189.77,189.69,7.6447]
[1735721989565,13.1738,189.77,189.7,1.87527455]
[1735721990165,13.1738,189.77,189.69,7.6447]
[1735721991371,13.1738,189.77,189.7,1.87539886]
[1735721992269,13.1738,189.77,189.69,7.6447]
[1735721993164,13.1738,189.77,189.7,1.87569714]
[1735721993756,13.1738,189.77,189.69,7.6447]
[1735721995382,13.1738,189.77,189.7,1.87617044]
[1735721996070,13.1738,189.77,189.69,7.6447]
[1735721997265,13.1738,189.77,189.7,1.87674702]
[1735721998066,13.1738,189.77,189.69,7.6447]
[1735721999275,13.1738,189.77,189.7,1.87770848]
[1735721999662,13.1738,189.77,189.71,1.87770848]
[1735722000178,13.1738,189.77,189.69,7.6447]
[1735722000345,20.0,189.79,189.69,7.6447]
[1735722000552,13.172,189.8,189.7,0.79056054]
[1735722000958,13.172,189.8,189.7,1.87857309]
[1735722001353,13.172,189.8,189.71,1.87857309]
[1735722001763,20.0,189.79,189.71,1.87857309]
[1735722002075,20.0,189.79,189.72,1.87857309]
[1735722002780,20.0,189.8,189.72,1.87857309]
[1735722002962,13.1696,189.83,189.7,1.5458]
[1735722003166,13.1696,189.83,189.74,1.5458]
[1735722003765,13.1696,189.83,189.75,1.8787304]
[1735722004365,20.0,189.78,189.76,1.8787304]
[1735722005167,20.0,189.78,189.74,1.5458]
[1735722005570,33.1738,189.78,189.74,1.5458]
[1735722006782,13.1738,189.78,189.74,1.5458]
[1735722007465,19.77941417,189.81,189.74,1.5458]
[1735722007979,13.1712,189.81,189.74,1.5458]
[1735722008991,13.1682,189.85,189.75,1.87858654]
[1735722009688,13.1682,189.85,189.74,1.5458]
[1735722010063,13.1696,189.83,189.74,1.5458]
[1735722010287,19.65645752,189.83,189.74,1.5458]
[1735722011186,26.26467169,189.83,189.74,1.5458]
[1735722013880,23.776884,189.82,189.74,1.5458]
[1735722014081,13.171,189.81,189.74,1.5458]
[1735722014713,23.776884,189.8,189.74,1.5458]
[1735722015187,13.1724,189.79,189.74,1.5458]
[1735722016403,13.1724,189.79,189.7,1.6178]
[1735722016707,13.1738,189.77,189.7,1.6178]
[1735722017383,13.1738,189.77,189.71,1.8777033]
[1735722017698,43.776884,189.78,189.71,1.8777033]
[1735722018207,20.0,189.78,189.7,1.6178]
[1735722018987,20.0,189.77,189.7,1.6178]
[1735722019604,20.0,189.77,189.71,1.87775072]
[1735722020312,20.0,189.77,189.7,1.6178]
[1735722022009,20.0,189.77,189.71,1.87766163]
[1735722022408,13.171,189.81,189.71,1.87766163]
[1735722023113,13.171,189.81,189.7,1.6178]
[1735722024307,13.171,189.81,189.71,1.87763396]
[1735722025414,13.171,189.81,189.7,1.6178]
[1735722025996,6.60821417,189.82,189.7,1.6178]
[1735722026191,13.169,189.84,189.73,1.6178]
[1735722026518,13.169,189.84,189.73,2.40811355]
[1735722027219,13.169,189.84,189.75,7.7101]
[1735722028009,19.77501417,189.88,189.76,0.79041606]
[1735722028210,20.0,189.85,189.76,0.79041606]
[1735722029220,20.0,189.85,189.77,1.87618305]
[1735722029711,20.0,189.85,189.75,7.7101]
[1735722030420,20.0,189.85,189.76,1.87541066]
[1735722030796,20.0,189.85,189.75,7.7101]
[1735722031209,13.1689,189.84,189.75,7.7101]
[1735722032127,13.1669,189.87,189.76,3.46359595]
[1735722032300,34.62053986,189.92,189.78,6.2606]
[1735722032495,20.0,189.89,189.79,1.5886]
[1735722032695,20.0,189.89,189.79,2.37872097]
[1735722033322,13.1648,189.9,189.79,2.37872097]
[1735722034340,36.939584,189.93,189.79,2.37872097]
[1735722034621,43.54779817,189.93,189.79,2.37872097]
[1735722035830,43.54779817,189.93,189.8,1.5886]
[1735722035999,19.77091417,189.93,189.81,0.79002208]
[1735722036200,19.77091417,189.93,189.83,1.5886]
[1735722044629,20.0,189.9,189.83,1.5886]
[1735722048525,20.0,189.89,189.83,1.5886]
[1735722048739,23.776884,189.88,189.77,6.5101]
[1735722049026,20.0,189.85,189.77,6.5101]
[1735722058945,13.1649,189.9,189.78,1.5992]
[1735722059343,5.29363832,189.92,189.79,1.5992]
[1735722059548,5.29363832,189.92,189.8,0.79001621]
[1735722059951,23.776884,189.91,189.8,0.79001621]
[1735722060429,23.776884,189.91,189.79,1.5992]
[1735722061034,23.776884,189.91,189.8,6.5338]
[1735722061737,5.29363832,189.92,189.8,6.5338]
[1735722062238,5.29363832,189.92,189.81,1.5458]
[1735722063872,5.29363832,189.92,189.83,8.0796]
[1735722064079,18.45403832,189.97,189.84,0.78984894]
[1735722065348,20.0,189.93,189.83,67.0796]
[1735722066435,20.0,189.93,189.83,67.86953781]
[1735722067442,20.0,189.93,189.83,67.0796]
[1735722068751,20.0,189.93,189.84,0.78995886]
[1735722070054,20.0,189.93,189.83,67.0796]
[1735722070764,56.940284,189.92,189.83,67.0796]
[1735722070960,56.940284,189.92,189.83,8.0796]
[1735722073284,20.0,189.88,189.83,8.0796]
[1735722073580,23.776884,189.9,189.83,8.0796]
[1735722074263,13.1655,189.89,189.83,8.0796]
[1735722076580,20.0,189.86,189.79,7.8013]
[1735722076776,23.776884,189.85,189.79,7.8013]
[1735722077685,36.945684,189.85,189.79,7.8013]
[1735722078668,13.1688,189.85,189.79,7.8013]
[1735722081053,36.945684,189.85,189.79,7.8013]
[1735722081877,20.0,189.86,189.79,7.8013]
[1735722082687,13.1659,189.89,189.79,7.8013]
[1735722082866,18.45703832,189.92,189.79,7.8013]
[1735722083260,18.45703832,189.92,189.79,8.59134026]
[1735722083788,23.776884,189.91,189.79,8.59134026]
[1735722084388,23.776884,189.91,189.8,1.87231472]
[1735722085275,23.776884,189.91,189.79,8.59134026]
[1735722086585,23.776884,189.91,189.8,1.87237914]
[1735722086789,23.776884,189.91,189.79,8.59134026]
[1735722087686,23.776884,189.91,189.79,7.07404026]
[1735722087881,23.776884,189.91,189.8,1.6134]
[1735722088276,23.776884,189.91,189.8,3.48588879]
[1735722089204,23.776884,189.91,189.8,1.6134]
[1735722089570,13.1613,189.96,189.83,6.1611]
[1735722089866,20.0,189.93,189.83,6.95100251]
[1735722092389,23.776884,189.95,189.84,1.5411]
[1735722092574,23.776884,189.95,189.85,0.7898254]
[1735722094393,23.776884,189.95,189.84,1.5411]
[1735722096392,20.0,189.94,189.84,1.5411]
[1735722096572,23.776884,189.93,189.84,1.5411]
[1735722097904,13.1623,189.94,189.84,1.5411]
[1735722098082,36.939184,189.94,189.84,1.5411]
[1735722099386,20.0,189.95,189.84,1.5411]
[1735722099578,20.0,189.95,189.84,2.33093938]
[1735722099778,20.0,189.94,189.84,2.33093938]
[1735722099981,20.0,189.93,189.84,2.33093938]
[1735722100179,23.776884,189.96,189.84,2.33093938]
[1735722100398,23.776884,189.96,189.85,1.5411]
[1735722101895,23.776884,189.96,189.87,1.5411]
[1735722102274,6.60864516,189.97,189.87,1.5411]
[1735722103591,13.1572,190.01,189.89,1.5411]
[1735722104500,20.0,189.97,189.9,1.87410376]
[1735722104681,13.1572,190.01,189.91,7.7093]
[1735722106478,23.776884,190.0,189.91,7.7093]
[1735722107071,20.0,189.97,189.91,7.7093]
[1735722107282,20.0,189.95,189.91,7.7093]
[1735722117201,26.3118,190.03,189.91,7.7093]
[1735722117403,33.158,190.0,189.91,7.7093]
[1735722117702,20.0,189.96,189.91,7.7093]
[1735722119106,23.776884,189.99,189.91,7.7093]
[1735722122104,13.158,190.0,189.91,7.7093]
[1735722122409,20.0,189.99,189.91,7.7093]
[1735722122594,43.776884,189.99,189.91,7.7093]
[1735722122789,20.0,189.99,189.91,7.7093]
[1735722123916,20.0,189.99,189.91,107.7093]
[1735722124709,6.24753405,190.02,189.92,0.7896009]
[1735722124909,6.24753405,190.02,189.91,107.7093]
[1735722125318,23.776884,190.01,189.91,107.7093]
[1735722131317,6.24753405,190.01,189.91,107.7093]
[1735722132396,43.776884,189.97,189.91,107.7093]
[1735722138415,23.776884,189.95,189.91,101.5411]
[1735722138930,23.776884,189.95,189.91,100.0]
[1735722141309,23.776884,189.93,189.91,100.0]
[1735722142811,39.40763405,189.97,189.91,100.0]
[1735722143831,23.776884,189.96,189.91,100.0]
[1735722144929,19.40763405,189.97,189.91,100.0]
[1735722145134,6.24753405,189.97,189.91,100.0]
[1735722150040,23.776884,189.96,189.91,100.0]
[1735722157079,13.1613,189.95,189.91,100.0]
[1735722157372,23.776884,189.94,189.91,100.0]
[1735722167670,43.776884,189.92,189.91,100.0]
[1735722183558,43.776884,189.92,189.91,16.75564383]
[1735722184273,43.776884,189.92,189.91,14.03724383]